Workbook

Sheet Data
A1: x | B1: y
A2: 3 | B2: 2.55
A3: 3 | B3: 2.55
A4: 3.47 | B4: 1.95
A5: 3.14 | B5: 1.89
A6: 3.46 | B6: 2.24
A7: 3.59 | B7: 2.31 | F7: Excel LINEST Results | K7: VBA Code Results
A8: 1.75 | B8: 1.74 | F8: Slope = | G8: =LINEST($B$2:$B$170,$A$2:$A$170,,TRUE) -> 0.2694801544 | H8: 1.378320069 | I8: = Intercept | K8: =regression(A2:A170,B2:B170) -> Slope = | L8: 0.2694801544
A9: 3.03 | B9: 1.87 | G9: 0.109306586 | H9: 0.3296359726 | K9: Intercept = | L9: 1.378320069
A10: 3.18 | B10: 0.83 | F10: R-squared = | G10: 0.0351171319 | H10: 0.8326512503 | K10: R-squared = | L10: 0.0351171319
A11: 2.77 | B11: 1.25 | G11: 6.078003063 | H11: 167
A12: 1.87 | B12: 2 | G12: 4.213928783 | H12: 115.7824535
A13: 3.25 | B13: 2.62
A14: 3.5 | B14: 2.6 | G14: Differences between VBA code and Excel results
A15: 2.7 | B15: 2.26 | H15: Absolute | I15: Relative
A16: 3.18 | B16: 1.78 | G16: Slope difference | H16: =ABS(G8-L8) -> 4.94049246e-15 | I16: =H16/G8 -> 1.833341854e-14
A17: 3.55 | B17: 2.4 | G17: Intercept difference | H17: =ABS(H8-L9) -> 1.443289932e-14 | I17: =H17/H8 -> 1.047136993e-14
A18: 3.88 | B18: 2.87 | G18: R-squared difference | H18: =ABS(G10-L10) -> 2.91433544e-16 | I18: =H18/G10 -> 8.298899374e-15
A19: 4 | B19: 2.02
A20: 3.3 | B20: 1.28
A21: 3.12 | B21: 2.21
A22: 3.35 | B22: 2.14
A23: 2.4 | B23: 3.07
A24: 3.65 | B24: 2.89
A25: 3.3 | B25: 2.3
A26: 2.52 | B26: 2.6
A27: 3.21 | B27: 2.7
A28: 1.87 | B28: 1.07
A29: 4 | B29: 3
A30: 3.59 | B30: 0
A31: 3.4 | B31: 2.19
A32: 3 | B32: 2.27
A33: 3.08 | B33: 1.82
A34: 2.27 | B34: 2.09
A35: 3.16 | B35: 1.06
A36: 3.5 | B36: 1.34
A37: 3.12 | B37: 2.41
A38: 3.57 | B38: 3.1
A39: 0 | B39: 2.7
A40: 3.09 | B40: 1.4
A41: 2.48 | B41: 0.14
A42: 2.27 | B42: 1.27
A43: 2.93 | B43: 2.11
A44: 2.3 | B44: 3.57
A45: 2.93 | B45: 2.5
A46: 3.27 | B46: 3.24
A47: 2.71 | B47: 3.37
A48: 3.15 | B48: 1.81
A49: 2.85 | B49: 2.24
A50: 3 | B50: 2.38
A51: 0 | B51: 2.43
A52: 3.68 | B52: 2.57
A53: 1.72 | B53: 1.35
A54: 3.07 | B54: 2.41
A55: 3.45 | B55: 2.43
A56: 3.25 | B56: 2.05
A57: 3 | B57: 2.33
A58: 2.64 | B58: 3
A59: 2.62 | B59: 0.14
A60: 3.71 | B60: 2.24
A61: 1.84 | B61: 0.88
A62: 3.34 | B62: 2.05
A63: 2.52 | B63: 3.08
A64: 3.62 | B64: 2.78
A65: 2.96 | B65: 2
A66: 4 | B66: 3.53
A67: 3.17 | B67: 0.43
A68: 2.96 | B68: 1.67
A69: 2.8 | B69: 3.74
A70: 2.94 | B70: 2.63
A71: 3.17 | B71: 3.08
A72: 3.5 | B72: 1.35
A73: 3.12 | B73: 2
A74: 2.98 | B74: 2.83
A75: 3.1 | B75: 2.57
A76: 2.43 | B76: 1.38
A77: 2.48 | B77: 3.5
A78: 2.4 | B78: 1
A79: 2.38 | B79: 1.2
A80: 3.14 | B80: 1.72
A81: 2.52 | B81: 1.9
A82: 3.38 | B82: 2.09
A83: 2.85 | B83: 2.71
A84: 3.64 | B84: 3.03
A85: 2.96 | B85: 1.11
A86: 2.55 | B86: 0.5
A87: 3.63 | B87: 3.55
A88: 3.4 | B88: 3.77
A89: 3 | B89: 2.04
A90: 3.62 | B90: 3.76
A91: 3.38 | B91: 2.87
A92: 2.92 | B92: 1.15
A93: 3.25 | B93: 0.77
A94: 3.55 | B94: 3.01
A95: 3.81 | B95: 2.35
A96: 3.29 | B96: 2.38
A97: 2.92 | B97: 2.72
A98: 2.72 | B98: 1.83
A99: 3.13 | B99: 1.82
A100: 3.14 | B100: 1.86
A101: 2.84 | B101: 3.22
A102: 3.8 | B102: 3.57
A103: 2.42 | B103: 2
A104: 2.7 | B104: 2.65
A105: 3.23 | B105: 2.8
A106: 3.53 | B106: 2.56
A107: 3 | B107: 1.48
A108: 3.17 | B108: 2.04
A109: 3.09 | B109: 2.4
A110: 3.23 | B110: 1.73
A111: 3.31 | B111: 2.42
A112: 2.55 | B112: 2.14
A113: 2.81 | B113: 2.65
A114: 2.8 | B114: 3.2
A115: 2.8 | B115: 2
A116: 1.74 | B116: 1.64
A117: 2.1 | B117: 1.14
A118: 2.91 | B118: 2.42
A119: 2.36 | B119: 2.13
A120: 2.05 | B120: 0.85
A121: 2.67 | B121: 2.13
A122: 2.65 | B122: 2.87
A123: 2.75 | B123: 2.23
A124: 2.65 | B124: 1.77
A125: 3.04 | B125: 0.85
A126: 3 | B126: 3.03
A127: 2.12 | B127: 1.74
A128: 2.6 | B128: 2.64
A129: 3.39 | B129: 2.89
A130: 2.19 | B130: 2
A131: 2.79 | B131: 0.7
A132: 3.22 | B132: 3.88
A133: 3.25 | B133: 2.23
A134: 2.36 | B134: 3.37
A135: 2.93 | B135: 2.73
A136: 2.34 | B136: 1.68
A137: 3.05 | B137: 3.05
A138: 2.77 | B138: 1.23
A139: 3.5 | B139: 3
A140: 2.88 | B140: 2.59
A141: 2.74 | B141: 1.9
A142: 3.8 | B142: 3.2
A143: 3.44 | B143: 1
A144: 3.21 | B144: 2
A145: 2.57 | B145: 0.93
A146: 3.3 | B146: 2.41
A147: 3.1 | B147: 0.9
A148: 2.16 | B148: 2.1
A149: 2.45 | B149: 3.7
A150: 3.04 | B150: 1.93
A151: 3.49 | B151: 0.14
A152: 2.61 | B152: 2.53
A153: 3.1 | B153: 1
A154: 2.9 | B154: 2.54
A155: 2.77 | B155: 2.13
A156: 3.93 | B156: 3.18
A157: 3.14 | B157: 3.54
A158: 3.85 | B158: 2.16
A159: 3.62 | B159: 2.15
A160: 2.32 | B160: 1.33
A161: 3.22 | B161: 0.83
A162: 2.5 | B162: 3
A163: 2.67 | B163: 3.75
A164: 2.88 | B164: 1.88
A165: 2.19 | B165: 1.08
A166: 3.56 | B166: 3.7
A167: 3.45 | B167: 2
A168: 2.82 | B168: 2.15
A169: 2.95 | B169: 0.5
A170: 3.21 | B170: 2.76
A171: Cell Formulas Calculation
A172: =SUM(A2:A170) -> 499.94 | B172: =SUM(B2:B170) -> 367.66 | C172: =COUNT(B2:B170) -> 169 | E172: VBA Results
A173: =SUMSQ(A2:A170) -> 1536.9624 | B173: =SUMSQ(B2:B170) -> 919.8418 | C173: =SUMPRODUCT(A2:A170,B2:B170) -> 1103.2582 | E173: =regression(A2:A170,B2:B170) -> Slope = | F173: 0.2694801544
A174: =A172/$C$172 -> 2.958224852 | B174: =B172/$C$172 -> 2.175502959 | E174: Intercept = | F174: 1.378320069
A175: b | B175: a | E175: R-squared = | F175: 0.0351171319
A176: =(C173-C172*A174*B174)/(A173-C172*A174^2) -> 0.2694801544 | B176: =B174-A176*A174 -> 1.378320069
A177: b | B177: a
A178: =(C173-A172*B172/C172)/(A173-A172^2/C172) -> 0.2694801544 | B178: =(B172-A178*A172)/C172 -> 1.378320069
